[Event "Titled Tuesday Blitz February 28 Late 2023"]
[White "Abdyzhaparov, Aidar"]
[Black "Torres Dominguez, David"]
[WhiteFideId "13800361"]
[BlackFideId "2220857"]
[WhiteElo "2002"]
[BlackElo "1999"]
[Result "1-0"]
[Round "03"]
[TimeControl "180+2"]
[Date "2023.02.28"]
[WhiteClock "0:00:34"]
[BlackClock "0:00:11"]

1. Nf3 {[%clk 0:03:00]}  d5 {[%clk 0:02:58]} 2. c4 {[%clk 0:03:01]}  d4 {[%clk 0:02:54]} 3. e3 {[%clk 0:03:01]}  Nc6 {[%clk 0:02:52]} 4. b4 {[%clk 0:03:00]}  dxe3 {[%clk 0:02:51]} 5. fxe3 {[%clk 0:03:01]}  Nxb4 {[%clk 0:02:50]} 6. d4 {[%clk 0:03:01]}  e6 {[%clk 0:02:43]} 7. Nc3 {[%clk 0:03:00]}  Nf6 {[%clk 0:02:41]} 8. a3 {[%clk 0:02:52]}  Nc6 {[%clk 0:02:40]} 9. d5 {[%clk 0:02:52]}  Ne7 {[%clk 0:02:32]} 10. e4 {[%clk 0:02:52]}  exd5 {[%clk 0:02:32]} 11. cxd5 {[%clk 0:02:51]}  Ng6 {[%clk 0:02:32]} 12. e5 {[%clk 0:02:51]}  Nd7 {[%clk 0:02:31]} 13. e6 {[%clk 0:02:46]}  Nf6 {[%clk 0:02:29]} 14. exf7+ {[%clk 0:02:43]}  Kxf7 {[%clk 0:02:29]} 15. Ng5+ {[%clk 0:02:35]}  Kg8 {[%clk 0:02:28]} 16. d6 {[%clk 0:02:29]}  Qe8+ {[%clk 0:02:17]} 17. Kf2 {[%clk 0:02:20]}  Ng4+ {[%clk 0:02:12]} 18. Qxg4 {[%clk 0:02:14]}  Bxg4 {[%clk 0:02:05]} 19. Bc4+ {[%clk 0:02:14]}  Be6 {[%clk 0:02:01]} 20. Bxe6+ {[%clk 0:02:15]}  Qxe6 {[%clk 0:02:00]} 21. Nxe6 {[%clk 0:02:16]}  Bxd6 {[%clk 0:01:58]} 22. Nb5 {[%clk 0:02:14]}  Be5 {[%clk 0:01:57]} 23. Rb1 {[%clk 0:02:04]}  h6 {[%clk 0:01:53]} 24. Nbxc7 {[%clk 0:01:54]}  Rc8 {[%clk 0:01:51]} 25. Nd5 {[%clk 0:01:53]}  Rc2+ {[%clk 0:01:48]} 26. Ke3 {[%clk 0:01:33]}  Kh7 {[%clk 0:01:45]} 27. Rxb7 {[%clk 0:01:26]}  Re8 {[%clk 0:01:41]} 28. Kd3 {[%clk 0:01:06]}  Rxg2 {[%clk 0:01:31]} 29. Nxg7 {[%clk 0:01:04]}  Rc8 {[%clk 0:01:12]} 30. Nh5+ {[%clk 0:00:51]}  Kh8 {[%clk 0:01:08]} 31. Nhf6 {[%clk 0:00:43]}  Nf8 {[%clk 0:00:55]} 32. Bxh6 {[%clk 0:00:37]}  Rg6 {[%clk 0:00:39]} 33. Bxf8 {[%clk 0:00:35]}  Bxf6 {[%clk 0:00:38]} 34. Nxf6 {[%clk 0:00:35]}  Rd8+ {[%clk 0:00:18]} 35. Ke4 {[%clk 0:00:34]}  Rxf6 {[%clk 0:00:14]} 36. Bg7+ {[%clk 0:00:34]}  Kg8 {[%clk 0:00:15]} 37. Bxf6 {[%clk 0:00:35]}  Re8+ {[%clk 0:00:15]} 38. Kf5 {[%clk 0:00:35]}  Re3 {[%clk 0:00:15]} 39. Rg1+ {[%clk 0:00:34]}  Kf8 {[%clk 0:00:14]} 40. Rd1 {[%clk 0:00:34]}  Rf3+ {[%clk 0:00:12]} 41. Kg4 {[%clk 0:00:34]}  Rxf6 {[%clk 0:00:11]} 42. Rd8# {[%clk 0:00:34]} 1-0


[Site "https://www.chess.com"]

[Event "Titled Tuesday Blitz February 28 Late 2023"]
[White "Kostiukov, Alexandr"]
[Black "tandercat"]
[WhiteFideId "14108100"]
[WhiteElo "2202"]
[BlackElo "1876"]
[Result "1-0"]
[Round "03"]
[TimeControl "180+2"]
[Date "2023.02.28"]
[WhiteClock "0:00:09"]
[BlackClock "0:00:31"]

1. c4 {[%clk 0:03:00]}  c5 {[%clk 0:02:58]} 2. g3 {[%clk 0:03:00]}  g6 {[%clk 0:02:58]} 3. Bg2 {[%clk 0:03:00]}  Bg7 {[%clk 0:02:58]} 4. Nf3 {[%clk 0:03:01]}  Nc6 {[%clk 0:02:57]} 5. O-O {[%clk 0:03:00]}  e5 {[%clk 0:02:57]} 6. Nc3 {[%clk 0:03:00]}  d6 {[%clk 0:02:56]} 7. a3 {[%clk 0:03:00]}  a5 {[%clk 0:02:53]} 8. Rb1 {[%clk 0:03:00]}  Be6 {[%clk 0:02:52]} 9. d3 {[%clk 0:03:00]}  Nge7 {[%clk 0:02:51]} 10. Ne1 {[%clk 0:02:58]}  O-O {[%clk 0:02:48]} 11. Nc2 {[%clk 0:02:57]}  d5 {[%clk 0:02:48]} 12. cxd5 {[%clk 0:02:57]}  Nxd5 {[%clk 0:02:49]} 13. Ne4 {[%clk 0:02:56]}  b6 {[%clk 0:02:43]} 14. Ng5 {[%clk 0:02:53]}  Bc8 {[%clk 0:02:24]} 15. b4 {[%clk 0:02:51]}  axb4 {[%clk 0:02:19]} 16. axb4 {[%clk 0:02:51]}  h6 {[%clk 0:02:11]} 17. Ne4 {[%clk 0:02:40]}  f5 {[%clk 0:02:09]} 18. b5 {[%clk 0:02:18]}  fxe4 {[%clk 0:02:02]} 19. Bb2 {[%clk 0:02:02]}  Ncb4 {[%clk 0:01:50]} 20. Bxe4 {[%clk 0:01:53]}  Bb7 {[%clk 0:01:46]} 21. Nxb4 {[%clk 0:01:45]}  cxb4 {[%clk 0:01:45]} 22. Bxg6 {[%clk 0:01:33]}  Nc3 {[%clk 0:01:32]} 23. Bxc3 {[%clk 0:01:28]}  bxc3 {[%clk 0:01:32]} 24. Qb3+ {[%clk 0:01:25]}  Qd5 {[%clk 0:01:30]} 25. Qxd5+ {[%clk 0:01:16]}  Bxd5 {[%clk 0:01:31]} 26. Rfc1 {[%clk 0:01:16]}  Rfc8 {[%clk 0:01:24]} 27. Rc2 {[%clk 0:00:57]}  Ra3 {[%clk 0:01:13]} 28. e4 {[%clk 0:00:43]}  Bb3 {[%clk 0:01:06]} 29. Rxb3 {[%clk 0:00:21]}  Rxb3 {[%clk 0:01:06]} 30. Bf5 {[%clk 0:00:22]}  Re8 {[%clk 0:00:55]} 31. Bd7 {[%clk 0:00:19]}  Rd8 {[%clk 0:00:53]} 32. Bc6 {[%clk 0:00:20]}  Kh8 {[%clk 0:00:49]} 33. Bd5 {[%clk 0:00:18]}  Rc8 {[%clk 0:00:48]} 34. Bxb3 {[%clk 0:00:18]}  Rc5 {[%clk 0:00:47]} 35. Bc4 {[%clk 0:00:17]}  Bf8 {[%clk 0:00:46]} 36. Rxc3 {[%clk 0:00:17]}  Be7 {[%clk 0:00:45]} 37. Kg2 {[%clk 0:00:17]}  Bg5 {[%clk 0:00:45]} 38. Ra3 {[%clk 0:00:14]}  Bd2 {[%clk 0:00:43]} 39. Ra7 {[%clk 0:00:14]}  Bc3 {[%clk 0:00:42]} 40. f4 {[%clk 0:00:13]}  exf4 {[%clk 0:00:41]} 41. gxf4 {[%clk 0:00:14]}  Bd4 {[%clk 0:00:42]} 42. e5 {[%clk 0:00:14]}  Bxe5 {[%clk 0:00:40]} 43. fxe5 {[%clk 0:00:14]}  Rxe5 {[%clk 0:00:41]} 44. Rb7 {[%clk 0:00:14]}  Re2+ {[%clk 0:00:40]} 45. Kg3 {[%clk 0:00:14]}  Re3+ {[%clk 0:00:40]} 46. Kf4 {[%clk 0:00:14]}  Re2 {[%clk 0:00:40]} 47. Rxb6 {[%clk 0:00:14]}  Rxh2 {[%clk 0:00:40]} 48. Rb7 {[%clk 0:00:13]}  Rf2+ {[%clk 0:00:40]} 49. Kg3 {[%clk 0:00:13]}  Rb2 {[%clk 0:00:39]} 50. Re7 {[%clk 0:00:08]}  Rd2 {[%clk 0:00:35]} 51. b6 {[%clk 0:00:07]}  Rb2 {[%clk 0:00:35]} 52. b7 {[%clk 0:00:08]}  Rb6 {[%clk 0:00:35]} 53. Bd5 {[%clk 0:00:06]}  Rg6+ {[%clk 0:00:34]} 54. Kf4 {[%clk 0:00:05]}  Rb6 {[%clk 0:00:34]} 55. Be4 {[%clk 0:00:05]}  Rf6+ {[%clk 0:00:34]} 56. Ke5 {[%clk 0:00:05]}  Rb6 {[%clk 0:00:35]} 57. d4 {[%clk 0:00:05]}  Kg8 {[%clk 0:00:35]} 58. d5 {[%clk 0:00:05]}  Kf8 {[%clk 0:00:35]} 59. Rc7 {[%clk 0:00:06]}  Rb5 {[%clk 0:00:34]} 60. Rh7 {[%clk 0:00:06]}  Kg8 {[%clk 0:00:34]} 61. Rc7 {[%clk 0:00:05]}  Kf8 {[%clk 0:00:34]} 62. Kd6 {[%clk 0:00:05]}  Kg8 {[%clk 0:00:34]} 63. Kc6 {[%clk 0:00:05]}  Rb1 {[%clk 0:00:33]} 64. d6 {[%clk 0:00:06]}  Rc1+ {[%clk 0:00:33]} 65. Kd7 {[%clk 0:00:06]}  Rb1 {[%clk 0:00:33]} 66. Rc8+ {[%clk 0:00:06]}  Kg7 {[%clk 0:00:32]} 67. b8=Q {[%clk 0:00:07]}  Rxb8 {[%clk 0:00:31]} 68. Rxb8 {[%clk 0:00:08]}  Kf6 {[%clk 0:00:32]} 69. Rh8 {[%clk 0:00:08]}  Kg5 {[%clk 0:00:31]} 70. Ke6 {[%clk 0:00:08]}  h5 {[%clk 0:00:31]} 71. d7 {[%clk 0:00:09]}  h4 {[%clk 0:00:31]} 72. d8=Q+ {[%clk 0:00:09]}  Kg4 {[%clk 0:00:31]} 73. Qxh4# {[%clk 0:00:09]} 1-0


[Site "https://www.chess.com"]

[Event "Titled Tuesday Blitz February 28 Late 2023"]
[White "Svane, Frederik"]
[Black "Nakamura, Hikaru"]
[WhiteFideId "12923044"]
[BlackFideId "2016192"]
[WhiteElo "2502"]
[BlackElo "2879"]
[Result "0-1"]
[Round "04"]
[TimeControl "180+2"]
[Date "2023.02.28"]
[WhiteClock "0:00:05"]
[BlackClock "0:00:40"]

1. e4 {[%clk 0:03:00]}  c5 {[%clk 0:02:57]} 2. Nf3 {[%clk 0:03:01]}  d6 {[%clk 0:02:56]} 3. d4 {[%clk 0:02:59]}  cxd4 {[%clk 0:02:57]} 4. Nxd4 {[%clk 0:03:00]}  Nf6 {[%clk 0:02:57]} 5. Nc3 {[%clk 0:03:01]}  g6 {[%clk 0:02:58]} 6. Be2 {[%clk 0:02:48]}  Bg7 {[%clk 0:02:57]} 7. O-O {[%clk 0:02:48]}  O-O {[%clk 0:02:55]} 8. Re1 {[%clk 0:02:49]}  Nc6 {[%clk 0:02:55]} 9. Bf1 {[%clk 0:02:47]}  Ng4 {[%clk 0:02:49]} 10. Nxc6 {[%clk 0:02:31]}  bxc6 {[%clk 0:02:50]} 11. h3 {[%clk 0:02:32]}  Nf6 {[%clk 0:02:49]} 12. Rb1 {[%clk 0:02:22]}  Nd7 {[%clk 0:02:46]} 13. Bd2 {[%clk 0:02:04]}  Nb6 {[%clk 0:02:37]} 14. Qc1 {[%clk 0:02:04]}  Re8 {[%clk 0:02:36]} 15. Bh6 {[%clk 0:01:59]}  Bh8 {[%clk 0:02:37]} 16. Nd1 {[%clk 0:01:51]}  e5 {[%clk 0:02:36]} 17. c4 {[%clk 0:01:46]}  Nd7 {[%clk 0:02:28]} 18. b4 {[%clk 0:01:45]}  Nf8 {[%clk 0:02:29]} 19. Bg5 {[%clk 0:01:38]}  Qc7 {[%clk 0:02:27]} 20. Be3 {[%clk 0:01:26]}  Ne6 {[%clk 0:02:23]} 21. Nc3 {[%clk 0:01:27]}  Nd4 {[%clk 0:02:20]} 22. Qd2 {[%clk 0:01:26]}  Be6 {[%clk 0:02:19]} 23. a3 {[%clk 0:01:09]}  Rad8 {[%clk 0:01:56]} 24. Rec1 {[%clk 0:01:08]}  Bxh3 {[%clk 0:01:47]} 25. Ne2 {[%clk 0:00:42]}  Nxe2+ {[%clk 0:01:45]} 26. Bxe2 {[%clk 0:00:43]}  Be6 {[%clk 0:01:43]} 27. Rb3 {[%clk 0:00:39]}  f5 {[%clk 0:01:43]} 28. Bg5 {[%clk 0:00:39]}  Rd7 {[%clk 0:01:42]} 29. exf5 {[%clk 0:00:32]}  gxf5 {[%clk 0:01:43]} 30. Rg3 {[%clk 0:00:32]}  Bg7 {[%clk 0:01:42]} 31. Bh6 {[%clk 0:00:31]}  f4 {[%clk 0:01:18]} 32. Rxg7+ {[%clk 0:00:31]}  Rxg7 {[%clk 0:01:19]} 33. Bxg7 {[%clk 0:00:32]}  Kxg7 {[%clk 0:01:19]} 34. Rd1 {[%clk 0:00:32]}  Rd8 {[%clk 0:01:20]} 35. Qc3 {[%clk 0:00:30]}  c5 {[%clk 0:01:11]} 36. b5 {[%clk 0:00:20]}  Kh8 {[%clk 0:01:07]} 37. a4 {[%clk 0:00:21]}  Qg7 {[%clk 0:01:03]} 38. Bf3 {[%clk 0:00:20]}  e4 {[%clk 0:01:01]} 39. Qxg7+ {[%clk 0:00:20]}  Kxg7 {[%clk 0:01:02]} 40. Bxe4 {[%clk 0:00:21]}  Bxc4 {[%clk 0:01:03]} 41. Bc6 {[%clk 0:00:21]}  d5 {[%clk 0:00:52]} 42. Rc1 {[%clk 0:00:18]}  Kf6 {[%clk 0:00:50]} 43. a5 {[%clk 0:00:18]}  Ke5 {[%clk 0:00:50]} 44. b6 {[%clk 0:00:18]}  axb6 {[%clk 0:00:49]} 45. axb6 {[%clk 0:00:19]}  Kd6 {[%clk 0:00:50]} 46. Ba4 {[%clk 0:00:16]}  Rb8 {[%clk 0:00:50]} 47. Rb1 {[%clk 0:00:16]}  Bd3 {[%clk 0:00:50]} 48. Rb2 {[%clk 0:00:13]}  c4 {[%clk 0:00:50]} 49. b7 {[%clk 0:00:06]}  c3 {[%clk 0:00:43]} 50. Rb6+ {[%clk 0:00:07]}  Kc5 {[%clk 0:00:41]} 51. Rc6+ {[%clk 0:00:06]}  Kb4 {[%clk 0:00:42]} 52. Bd1 {[%clk 0:00:04]}  Rxb7 {[%clk 0:00:41]} 53. Bf3 {[%clk 0:00:05]}  Re7 {[%clk 0:00:41]} 54. Bxd5 {[%clk 0:00:05]}  Re1+ {[%clk 0:00:40]} 0-1


[Site "https://www.chess.com"]

[Event "Titled Tuesday Blitz February 28 Late 2023"]
[White "Carlsen, Magnus"]
[Black "Rasulov, Vugar"]
[WhiteFideId "1503014"]
[BlackFideId "13402390"]
[WhiteElo "2852"]
[BlackElo "2509"]
[Result "1-0"]
[Round "04"]
[TimeControl "180+2"]
[Date "2023.02.28"]
[WhiteClock "0:00:24"]
[BlackClock "0:00:13"]

1. d4 {[%clk 0:03:00]}  Nf6 {[%clk 0:02:59]} 2. c4 {[%clk 0:03:00]}  e6 {[%clk 0:02:59]} 3. Nf3 {[%clk 0:02:59]}  d5 {[%clk 0:02:59]} 4. Nc3 {[%clk 0:02:58]}  c6 {[%clk 0:02:56]} 5. g3 {[%clk 0:02:54]}  Nbd7 {[%clk 0:02:54]} 6. Bg2 {[%clk 0:02:54]}  Be7 {[%clk 0:02:54]} 7. O-O {[%clk 0:02:53]}  O-O {[%clk 0:02:55]} 8. b3 {[%clk 0:02:52]}  b6 {[%clk 0:02:54]} 9. Bb2 {[%clk 0:02:52]}  Ba6 {[%clk 0:02:53]} 10. Qd3 {[%clk 0:02:47]}  Rc8 {[%clk 0:02:51]} 11. a4 {[%clk 0:02:45]}  Bb4 {[%clk 0:02:42]} 12. Na2 {[%clk 0:02:34]}  Bd6 {[%clk 0:02:40]} 13. Nc3 {[%clk 0:02:29]}  Bb4 {[%clk 0:02:39]} 14. Rfd1 {[%clk 0:02:29]}  Qe7 {[%clk 0:02:38]} 15. Nd2 {[%clk 0:02:23]}  Rfd8 {[%clk 0:02:35]} 16. e3 {[%clk 0:02:22]}  e5 {[%clk 0:02:26]} 17. Qc2 {[%clk 0:02:13]}  e4 {[%clk 0:02:16]} 18. Bh3 {[%clk 0:02:06]}  h5 {[%clk 0:02:10]} 19. Rac1 {[%clk 0:02:04]}  Bb7 {[%clk 0:02:06]} 20. Nf1 {[%clk 0:01:46]}  Ng4 {[%clk 0:01:57]} 21. Qe2 {[%clk 0:01:46]}  Ndf6 {[%clk 0:01:48]} 22. c5 {[%clk 0:01:40]}  bxc5 {[%clk 0:01:37]} 23. Na2 {[%clk 0:01:40]}  c4 {[%clk 0:01:27]} 24. Nxb4 {[%clk 0:01:34]}  Qxb4 {[%clk 0:01:28]} 25. bxc4 {[%clk 0:01:34]}  Ba6 {[%clk 0:01:26]} 26. Bc3 {[%clk 0:01:29]}  Qxc4 {[%clk 0:01:21]} 27. Qxc4 {[%clk 0:01:29]}  Bxc4 {[%clk 0:01:22]} 28. Nd2 {[%clk 0:01:29]}  Ba6 {[%clk 0:01:11]} 29. Nb3 {[%clk 0:01:28]}  Rb8 {[%clk 0:01:10]} 30. Ba5 {[%clk 0:01:24]}  Rdc8 {[%clk 0:01:03]} 31. Nc5 {[%clk 0:01:24]}  Bc4 {[%clk 0:01:02]} 32. Rb1 {[%clk 0:01:21]}  Nh7 {[%clk 0:00:53]} 33. Bf1 {[%clk 0:01:05]}  Bxf1 {[%clk 0:00:41]} 34. Rxf1 {[%clk 0:01:05]}  Ng5 {[%clk 0:00:42]} 35. Kg2 {[%clk 0:01:03]}  Nf3 {[%clk 0:00:41]} 36. Nd7 {[%clk 0:00:56]}  Rxb1 {[%clk 0:00:39]} 37. Rxb1 {[%clk 0:00:57]}  Ngxh2 {[%clk 0:00:27]} 38. Rb8 {[%clk 0:00:57]}  Rxb8 {[%clk 0:00:25]} 39. Nxb8 {[%clk 0:00:58]}  Ng4 {[%clk 0:00:22]} 40. Nxc6 {[%clk 0:00:58]}  f5 {[%clk 0:00:22]} 41. Nxa7 {[%clk 0:00:57]}  g5 {[%clk 0:00:17]} 42. Nc6 {[%clk 0:00:53]}  h4 {[%clk 0:00:18]} 43. gxh4 {[%clk 0:00:50]}  gxh4 {[%clk 0:00:16]} 44. Bb4 {[%clk 0:00:40]}  Ng5 {[%clk 0:00:13]} 45. Ne7+ {[%clk 0:00:31]}  Kf7 {[%clk 0:00:13]} 46. Nxf5 {[%clk 0:00:32]}  h3+ {[%clk 0:00:13]} 47. Kg3 {[%clk 0:00:32]}  h2 {[%clk 0:00:14]} 48. Kg2 {[%clk 0:00:30]}  Nf3 {[%clk 0:00:14]} 49. Ng3 {[%clk 0:00:26]}  Ke6 {[%clk 0:00:14]} 50. a5 {[%clk 0:00:20]}  Kd7 {[%clk 0:00:15]} 51. a6 {[%clk 0:00:21]}  Kc6 {[%clk 0:00:12]} 52. Ba5 {[%clk 0:00:21]}  Nh4+ {[%clk 0:00:11]} 53. Kh3 {[%clk 0:00:20]}  Nxf2+ {[%clk 0:00:11]} 54. Kxh4 {[%clk 0:00:20]}  h1=Q+ {[%clk 0:00:12]} 55. Nxh1 {[%clk 0:00:20]}  Nxh1 {[%clk 0:00:13]} 56. Be1 {[%clk 0:00:21]}  Kb6 {[%clk 0:00:11]} 57. Kh3 {[%clk 0:00:21]}  Kxa6 {[%clk 0:00:11]} 58. Kg2 {[%clk 0:00:22]}  Kb5 {[%clk 0:00:11]} 59. Kxh1 {[%clk 0:00:22]}  Kc4 {[%clk 0:00:12]} 60. Bg3 {[%clk 0:00:23]}  Kd3 {[%clk 0:00:13]} 61. Bf4 {[%clk 0:00:24]} 1-0


[Site "https://www.chess.com"]

[Event "Titled Tuesday Blitz February 28 Late 2023"]
[White "Vachier-Lagrave, Maxime"]
[Black "Swiercz, Dariusz"]
[WhiteFideId "623539"]
[BlackFideId "1126881"]
[WhiteElo "2740"]
[BlackElo "2627"]
[Result "1/2-1/2"]
[Round "04"]
[TimeControl "180+2"]
[Date "2023.02.28"]
[WhiteClock "0:00:06"]
[BlackClock "0:00:05"]

1. c4 {[%clk 0:03:00]}  g6 {[%clk 0:02:57]} 2. d4 {[%clk 0:02:59]}  Bg7 {[%clk 0:02:56]} 3. Nc3 {[%clk 0:02:59]}  Nf6 {[%clk 0:02:56]} 4. e4 {[%clk 0:02:58]}  d6 {[%clk 0:02:56]} 5. h3 {[%clk 0:02:57]}  e5 {[%clk 0:02:56]} 6. d5 {[%clk 0:02:56]}  a5 {[%clk 0:02:55]} 7. g4 {[%clk 0:02:55]}  Na6 {[%clk 0:02:55]} 8. Bd3 {[%clk 0:02:54]}  Nc5 {[%clk 0:02:53]} 9. Bc2 {[%clk 0:02:54]}  h5 {[%clk 0:02:53]} 10. g5 {[%clk 0:02:51]}  Nh7 {[%clk 0:02:54]} 11. h4 {[%clk 0:02:47]}  f6 {[%clk 0:02:50]} 12. Be3 {[%clk 0:02:30]}  fxg5 {[%clk 0:02:43]} 13. hxg5 {[%clk 0:02:31]}  Nxg5 {[%clk 0:02:36]} 14. Qd2 {[%clk 0:02:31]}  Nf7 {[%clk 0:02:33]} 15. Nge2 {[%clk 0:02:28]}  Bd7 {[%clk 0:02:25]} 16. O-O-O {[%clk 0:02:27]}  Qe7 {[%clk 0:02:23]} 17. Rdg1 {[%clk 0:02:26]}  Qf6 {[%clk 0:02:19]} 18. Kb1 {[%clk 0:02:10]}  b6 {[%clk 0:02:06]} 19. a3 {[%clk 0:01:53]}  a4 {[%clk 0:02:03]} 20. Qd1 {[%clk 0:01:42]}  Bh6 {[%clk 0:01:49]} 21. Bxh6 {[%clk 0:01:18]}  Nxh6 {[%clk 0:01:41]} 22. f4 {[%clk 0:01:17]}  Ng4 {[%clk 0:01:37]} 23. Qd2 {[%clk 0:01:05]}  O-O-O {[%clk 0:01:32]} 24. Rf1 {[%clk 0:01:05]}  Rdf8 {[%clk 0:01:27]} 25. f5 {[%clk 0:01:05]}  gxf5 {[%clk 0:01:12]} 26. exf5 {[%clk 0:01:06]}  Qh6 {[%clk 0:01:12]} 27. Qxh6 {[%clk 0:01:01]}  Rxh6 {[%clk 0:01:13]} 28. Rf3 {[%clk 0:00:55]}  h4 {[%clk 0:01:01]} 29. Rg1 {[%clk 0:00:55]}  Nf6 {[%clk 0:00:58]} 30. Rh3 {[%clk 0:00:49]}  Rh5 {[%clk 0:00:51]} 31. Rg6 {[%clk 0:00:45]}  Kd8 {[%clk 0:00:49]} 32. Ka2 {[%clk 0:00:44]}  Ke7 {[%clk 0:00:45]} 33. Nd1 {[%clk 0:00:41]}  Rg8 {[%clk 0:00:39]} 34. Rxg8 {[%clk 0:00:38]}  Nxg8 {[%clk 0:00:40]} 35. Ne3 {[%clk 0:00:38]}  Nf6 {[%clk 0:00:39]} 36. Ng1 {[%clk 0:00:34]}  Rg5 {[%clk 0:00:33]} 37. Ne2 {[%clk 0:00:34]}  Rh5 {[%clk 0:00:28]} 38. Ng1 {[%clk 0:00:34]}  e4 {[%clk 0:00:22]} 39. Bd1 {[%clk 0:00:23]}  Rg5 {[%clk 0:00:20]} 40. Ne2 {[%clk 0:00:23]}  Bxf5 {[%clk 0:00:20]} 41. Rxh4 {[%clk 0:00:24]}  Bd7 {[%clk 0:00:14]} 42. Nd4 {[%clk 0:00:24]}  Rg1 {[%clk 0:00:13]} 43. Bc2 {[%clk 0:00:22]}  Re1 {[%clk 0:00:11]} 44. Ng2 {[%clk 0:00:21]}  Rf1 {[%clk 0:00:08]} 45. Ne3 {[%clk 0:00:21]}  Re1 {[%clk 0:00:08]} 46. Ng2 {[%clk 0:00:22]}  Rc1 {[%clk 0:00:06]} 47. Ne3 {[%clk 0:00:19]}  Rg1 {[%clk 0:00:06]} 48. Rh2 {[%clk 0:00:16]}  Re1 {[%clk 0:00:05]} 49. Ng2 {[%clk 0:00:16]}  Rf1 {[%clk 0:00:05]} 50. Ne3 {[%clk 0:00:16]}  Re1 {[%clk 0:00:06]} 51. Ng2 {[%clk 0:00:15]}  Rc1 {[%clk 0:00:07]} 52. Ne3 {[%clk 0:00:14]}  Rg1 {[%clk 0:00:07]} 53. Rf2 {[%clk 0:00:14]}  Rg5 {[%clk 0:00:06]} 54. Nef5+ {[%clk 0:00:13]}  Bxf5 {[%clk 0:00:06]} 55. Nxf5+ {[%clk 0:00:14]}  Kd8 {[%clk 0:00:05]} 56. Nd4 {[%clk 0:00:15]}  Ke7 {[%clk 0:00:04]} 57. Nc6+ {[%clk 0:00:15]}  Kf7 {[%clk 0:00:05]} 58. Nd8+ {[%clk 0:00:14]}  Kg7 {[%clk 0:00:06]} 59. Nc6 {[%clk 0:00:13]}  Rg3 {[%clk 0:00:05]} 60. Nd4 {[%clk 0:00:13]}  Kg6 {[%clk 0:00:05]} 61. Nb5 {[%clk 0:00:12]}  Kg5 {[%clk 0:00:04]} 62. Nxc7 {[%clk 0:00:11]}  e3 {[%clk 0:00:05]} 63. Rh2 {[%clk 0:00:10]}  Nfe4 {[%clk 0:00:04]} 64. Ne6+ {[%clk 0:00:10]}  Kf6 {[%clk 0:00:03]} 65. Nd4 {[%clk 0:00:09]}  Ke5 {[%clk 0:00:03]} 66. Ne2 {[%clk 0:00:09]}  Rg5 {[%clk 0:00:04]} 67. Rh4 {[%clk 0:00:09]}  Nf2 {[%clk 0:00:03]} 68. Rh6 {[%clk 0:00:08]}  Ng4 {[%clk 0:00:02]} 69. Rh8 {[%clk 0:00:06]}  Nf6 {[%clk 0:00:02]} 70. Rh2 {[%clk 0:00:06]}  Rg4 {[%clk 0:00:01]} 71. Rh3 {[%clk 0:00:06]}  Rxc4 {[%clk 0:00:01]} 72. Rxe3+ {[%clk 0:00:06]}  Kxd5 {[%clk 0:00:02]} 73. Bg6 {[%clk 0:00:07]}  Kc6 {[%clk 0:00:02]} 74. Bf7 {[%clk 0:00:07]}  d5 {[%clk 0:00:03]} 75. Rf3 {[%clk 0:00:06]}  Nfe4 {[%clk 0:00:03]} 76. Bg6 {[%clk 0:00:06]}  Nd6 {[%clk 0:00:03]} 77. Bb1 {[%clk 0:00:05]}  Rh4 {[%clk 0:00:03]} 78. Rf6 {[%clk 0:00:05]}  Ne4 {[%clk 0:00:04]} 79. Rg6 {[%clk 0:00:05]}  Rh2 {[%clk 0:00:03]} 80. Nd4+ {[%clk 0:00:05]}  Kc5 {[%clk 0:00:03]} 81. Ne6+ {[%clk 0:00:06]}  Kc4 {[%clk 0:00:03]} 82. Nf4 {[%clk 0:00:05]}  Nc3+ {[%clk 0:00:03]} 83. Ka1 {[%clk 0:00:06]}  Nxb1 {[%clk 0:00:04]} 84. Kxb1 {[%clk 0:00:07]}  Rh1+ {[%clk 0:00:04]} 85. Ka2 {[%clk 0:00:07]}  Kc5 {[%clk 0:00:04]} 86. Nd3+ {[%clk 0:00:07]}  Kc6 {[%clk 0:00:03]} 87. Nb4+ {[%clk 0:00:08]}  Kc5 {[%clk 0:00:04]} 88. Nd3+ {[%clk 0:00:07]}  Kc6 {[%clk 0:00:04]} 89. Ne5+ {[%clk 0:00:08]}  Kc5 {[%clk 0:00:04]} 90. Nd7+ {[%clk 0:00:08]}  Kc6 {[%clk 0:00:05]} 91. Ne5+ {[%clk 0:00:07]}  Kc5 {[%clk 0:00:05]} 92. Nd3+ {[%clk 0:00:06]} 1/2-1/2


[Site "https://www.chess.com"]

[Event "Titled Tuesday Blitz February 28 Late 2023"]
[White "Andreikin, Dmitry"]
[Black "Chigaev, Maksim"]
[WhiteFideId "4158814"]
[BlackFideId "4108116"]
[WhiteElo "2736"]
[BlackElo "2547"]
[Result "1/2-1/2"]
[Round "04"]
[TimeControl "180+2"]
[Date "2023.02.28"]
[WhiteClock "0:01:38"]
[BlackClock "0:00:59"]

1. c4 {[%clk 0:03:00]}  Nf6 {[%clk 0:02:58]} 2. Nf3 {[%clk 0:03:00]}  c6 {[%clk 0:02:57]} 3. Nc3 {[%clk 0:02:58]}  d5 {[%clk 0:02:57]} 4. e3 {[%clk 0:02:59]}  a6 {[%clk 0:02:58]} 5. d4 {[%clk 0:02:57]}  b5 {[%clk 0:02:57]} 6. b3 {[%clk 0:02:51]}  Bg4 {[%clk 0:02:54]} 7. Qc2 {[%clk 0:02:51]}  Bxf3 {[%clk 0:02:53]} 8. gxf3 {[%clk 0:02:52]}  Nbd7 {[%clk 0:02:53]} 9. f4 {[%clk 0:02:51]}  e6 {[%clk 0:02:49]} 10. c5 {[%clk 0:02:51]}  g6 {[%clk 0:02:46]} 11. Be2 {[%clk 0:02:51]}  Bg7 {[%clk 0:02:37]} 12. Bd2 {[%clk 0:02:51]}  Ng8 {[%clk 0:02:35]} 13. a4 {[%clk 0:02:43]}  b4 {[%clk 0:02:35]} 14. Na2 {[%clk 0:02:40]}  a5 {[%clk 0:02:35]} 15. Nc1 {[%clk 0:02:40]}  Ne7 {[%clk 0:02:36]} 16. Nd3 {[%clk 0:02:40]}  Nf5 {[%clk 0:02:32]} 17. Bg4 {[%clk 0:02:38]}  Nf6 {[%clk 0:02:21]} 18. Bxf5 {[%clk 0:02:35]}  exf5 {[%clk 0:02:22]} 19. Ne5 {[%clk 0:02:35]}  Rc8 {[%clk 0:02:22]} 20. f3 {[%clk 0:02:29]}  Nh5 {[%clk 0:02:15]} 21. h4 {[%clk 0:02:28]}  O-O {[%clk 0:02:11]} 22. O-O-O {[%clk 0:02:27]}  Qe7 {[%clk 0:01:33]} 23. Rdg1 {[%clk 0:02:26]}  Bxe5 {[%clk 0:01:17]} 24. fxe5 {[%clk 0:02:21]}  Qe6 {[%clk 0:01:06]} 25. f4 {[%clk 0:02:04]}  h6 {[%clk 0:01:04]} 26. Qd1 {[%clk 0:02:03]}  Kh7 {[%clk 0:01:05]} 27. Qe2 {[%clk 0:02:02]}  Rg8 {[%clk 0:01:05]} 28. Rg2 {[%clk 0:02:00]}  Ra8 {[%clk 0:01:05]} 29. Rgg1 {[%clk 0:02:00]}  Rg7 {[%clk 0:01:05]} 30. Rg2 {[%clk 0:02:01]}  Rgg8 {[%clk 0:01:06]} 31. Rhg1 {[%clk 0:02:01]}  Rg7 {[%clk 0:01:06]} 32. Qxh5 {[%clk 0:01:57]}  gxh5 {[%clk 0:01:07]} 33. Rxg7+ {[%clk 0:01:57]}  Kh8 {[%clk 0:01:07]} 34. Kc2 {[%clk 0:01:54]}  Rb8 {[%clk 0:01:06]} 35. Be1 {[%clk 0:01:47]}  Rc8 {[%clk 0:01:05]} 36. Bd2 {[%clk 0:01:42]}  Rb8 {[%clk 0:01:03]} 37. Bc1 {[%clk 0:01:41]}  Rc8 {[%clk 0:01:03]} 38. Bd2 {[%clk 0:01:38]}  Rb8 {[%clk 0:00:59]} 1/2-1/2


[Site "https://www.chess.com"]